[Event "French Top 16-A 2024"]
[Site "Chartres"]
[Date "2024.06.01"]
[Round "1.13"]
[White "Sochacki, Christophe"]
[Black "Kunin, Vitaly"]
[Result "1-0"]
[ECO "B51"]
[WhiteElo "2451"]
[BlackElo "2525"]
[Annotator "TA"]
[PlyCount "101"]
[EventDate "2024.06.01"]
[EventType "team-tourn"]
[EventCountry "FRA"]
[SourceTitle "playchess.com"]
[Source "ChessBase"]
[SourceQuality "1"]
[TimeControl "40/5400+30:1800+30"]

{[%evp 17,101,19,16,19,36,29,83,74,78,71,96,97,105,109,106,110,119,84,87,60,59,30,63,74,62,58,66,60,79,75,80,80,77,77,81,85,116,103,100,99,132,114,137,126,170,149,144,154,180,151,167,156,154,155,161,155,339,329,473,473,431,431,1435,6504,29968,29969,5941,5447,1558,1323,29975,29976,29976,29976,29995,29987,29990,29988,29988,29989,29989,29990,29988,29987,29987,988]} 1. e4 {[%emt 0:00:05]} c5 {[%emt 0:01:49]} 2. Nf3 {[%emt 0:00:10]} Nc6 {[%emt 0:00:35]} 3. Bb5 {[%emt 0:01:09]} d6 {[%emt 0:00:43]} 4. O-O {[%emt 0:00:37]} Bd7 {[%emt 0:00:06]} 5. Re1 {[%emt 0:00:22]} Nf6 {[%emt 0:00:10]} 6. c3 {[%emt 0:00:24]} a6 {[%emt 0:00:08]} 7. Bf1 {[%emt 0:00:13]} Bg4 {[%emt 0:00:11]} 8. d4 {[%emt 0:00:18]} cxd4 {[%emt 0:00:59]} 9. cxd4 {[%emt 0:00:06]} d5 {[%emt 0:01:24]} 10. e5 {[%emt 0:00:17]} Ne4 {[%emt 0:01:03]} 11. h3 {[%emt 0:18:44]} Bh5 {[%emt 0:01:31] [#]} (11... Bf5 $1 $11) 12. e6 $1 $16 {[%emt 0:23:52] White is better.} fxe6 {[%emt 0:01:07][%cal Oe6e5]} 13. Nc3 {[%emt 0:00:17]} Nxc3 {[%emt 0:23:15]} (13... Bxf3 14. Qxf3 g6 15. Nxe4 Nxd4 16. Qg4 dxe4 17. Rxe4) 14. bxc3 {[%emt 0:01:15][%cal Of1e2]} e5 {[%emt 0:00:07]} 15. g4 {[%emt 0:07:19]} (15. dxe5 e6 $14) 15... Bf7 {[%emt 0:01:19]} 16. Nxe5 {[%emt 0:04:47]} Nxe5 {[%emt 0:00:30]} 17. Rxe5 {[%emt 0:00:03] And now Rb1 would win.} e6 {[%emt 0:00:24]} 18. Rb1 {[%emt 0:08:02] White is more active.} Bd6 {[%emt 0:03:12] [#]} 19. Ba3 $1 {[%emt 0:05:08] Hoping for Bxd6.} b5 {[%emt 0:05:54]} (19... Bxa3 $2 20. Qa4+ (20. Rxb7 $2 O-O $19) 20... b5 21. Qxa3 $16) (19... Bxe5 $2 20. dxe5 Qa5 21. Bb4 $18) (19... Rb8 20. Bxd6) 20. Bxd6 {[%emt 0:00:35]} Qxd6 {[%emt 0:00:08]} 21. a4 {[%emt 0:00:08]} O-O {[%emt 0:00:14]} 22. axb5 {[%emt 0:00:07]} axb5 {[%emt 0:00:05]} 23. Rxb5 {[%emt 0:03:37]} Ra3 {[%emt 0:04:52]} 24. Rb3 {[%emt 0:02:44]} Ra2 {[%emt 0:04:51]} 25. Qe1 {[%emt 0:00:45]} Kh8 {[%emt 0:02:09]} 26. Re2 {[%emt 0:05:42][%cal Be5e2,Be2b2,Bb2b3][%mdl 32]} Ra3 {[%emt 0:09:16]} 27. Reb2 {[%emt 0:00:38]} Rxb3 {[%emt 0:09:08]} 28. Rxb3 {[%emt 0:00:01]} Bg8 {[%emt 0:00:13]} 29. Kg2 {[%emt 0:04:32]} Rf4 {[%emt 0:01:28]} 30. Bd3 {[%emt 0:00:56]} Qf8 {[%emt 0:03:09]} 31. Rb2 {[%emt 0:00:37]} h6 {[%emt 0:05:46]} 32. Qe5 {[%emt 0:01:36][%cal Od3f5] Strongly threatening Bf5!} Rf6 {[%emt 0:00:22]} 33. h4 {[%emt 0:03:25]} Rf3 {[%emt 0:05:07] Prevents Qg3.} 34. Qe2 {[%emt 0:01:49]} Rf4 {[%emt 0:00:29][%cal Oh6h5]} 35. f3 $36 {[%emt 0:00:56][%mdl 2048] Black is under strong pressure.} Qc8 {[%emt 0:07:29] Black is weak on the light squares} 36. Rb3 {[%emt 0:00:51] Threatens to win with Qe5.} Rf7 $2 {[%emt 0:01:08] A mistake that costs the game.} (36... Qc7 $16 37. Qe3 Qd6) 37. Qe5 $18 {[%emt 0:01:26]} Qa8 {[%emt 0:04:32]} (37... Qc7 $142 38. Qxc7 (38. Qxe6 Rxf3 $17) 38... Rxc7) 38. Rb8 {[%emt 0:01:10]} (38. Qxe6 $2 {is the wrong capture.} Qa2+ 39. Qe2 Qxb3 $19) 38... Qa2+ {[%emt 0:00:09]} 39. Be2 {[%emt 0:00:56]} Rf6 {[%emt 0:02:34]} (39... Qa7 $142 40. Rc8 Qb6) 40. g5 {[%emt 0:00:35]} Rg6 {[%emt 0:02:07]} 41. f4 {[%emt 0:30:44][%cal Bf3f4,Bf4f5][%mdl 32]} hxg5 {[%emt 0:04:38]} 42. hxg5 {[%emt 0:00:00] White wants to mate with Kf2.} Qc2 {[%emt 0:01:34]} 43. Kf2 {[%emt 0:00:00] White threatens Rc8 and mate.} Qc1 {[%emt 0:02:59]} 44. Rc8 {[%emt 0:00:00] White mates.} Kh7 {[%emt 0:02:44]} 45. f5 {[%emt 0:00:00]} Kh8 {[%emt 0:02:15]} 46. Qh2+ {[%emt 0:00:00]} ({Not} 46. fxg6 Qf1+ 47. Bxf1 $11) 46... Rh6 {[%emt 0:00:07]} 47. gxh6 {[%emt 0:00:00]} Qg5 {[%emt 0:00:35]} 48. hxg7+ {[%emt 0:00:00]} Kxg7 {[%emt 0:00:05]} 49. Qe5+ {[%emt 0:00:00]} Kh6 {[%emt 0:00:28]} 50. Qh8+ {[%emt 0:00:00]} Bh7 {[%emt 0:00:06]} 51. Qf8+ {[%emt 0:00:00] Weighted Error Value: White=0.05 (flawless) /Black=0.49.  Loses game:     	---       	Black=1      Mistake:       	---       	Black=3      Inaccurate:     	White=2     	Black=5      OK:         	White=11    	Black=8      Best:        	White=6     	Black=2} ({And not} 51. fxe6 Qf4+ 52. Bf3 Qd2+ 53. Kg3 Qg5+ 54. Kh2 Qf4+ 55. Kg2 Qg5+ 56. Kf2 Qd2+ 57. Kg3 Qg5+ 58. Bg4 Qe3+ 59. Kh4 Qe1+ 60. Kh3 Qh1+ 61. Kg3 Qg1+ 62. Kf4 Qh2+ 63. Kf3 Qh1+ 64. Kg3 Qg1+ 65. Kf4 Qh2+ 66. Ke3 Qg1+ 67. Kf4 $11) 1-0

[Event "French Top 16-A 2024"]
[Site "Chartres"]
[Date "2024.06.01"]
[Round "1.13"]
[White "De Balmann, Marc"]
[Black "Fedorchuk, Sergey A."]
[Result "0-1"]
[ECO "A05"]
[WhiteElo "2151"]
[BlackElo "2546"]
[Annotator "TA"]
[PlyCount "120"]
[EventDate "2024.06.01"]
[EventType "team-tourn"]
[EventCountry "FRA"]
[SourceTitle "playchess.com"]
[Source "ChessBase"]
[SourceQuality "1"]
[TimeControl "40/5400+30:1800+30"]

{[%evp 30,120,21,27,27,0,26,25,24,0,12,-38,-1,-31,-47,-48,-47,-62,-54,-64,-39,-41,-25,-35,-24,-32,-37,-31,-12,-20,-6,-56,0,-53,-62,-56,-37,-70,-45,-70,-77,-100,-93,-121,-80,-78,-85,-82,-68,-93,-101,-91,-59,-108,-98,-168,-183,-395,-204,-180,-125,-165,-165,-295,-261,-540,-319,-319,-309,-327,-337,-360,-340,-331,-347,-339,-338,-291,-281,-367,-367,-409,-361,-564,-472,-1070,-1022,-821,-827,-4132,-1427,-1203,-1162]} 1. Nf3 {[%emt 0:00:03]} Nf6 {[%emt 0:00:16]} 2. g3 {[%emt 0:00:06]} b5 {[%emt 0:01:03]} 3. Bg2 {[%emt 0:00:32]} Bb7 {[%emt 0:00:11]} 4. O-O {[%emt 0:00:21]} e6 {[%emt 0:03:12]} 5. d3 {[%emt 0:02:00]} Be7 {[%emt 0:03:19]} 6. e4 {[%emt 0:02:42]} d6 {[%emt 0:00:31]} 7. Qe2 {[%emt 0:05:02]} O-O {[%emt 0:01:16]} 8. Nbd2 {[%emt 0:00:17]} c5 {[%emt 0:04:52]} 9. Re1 {[%emt 0:07:45] A05: Réti Opening: 1 Nf3 Nf6.} Nc6 {[%emt 0:01:11]} 10. c3 {[%emt 0:02:01]} Qb6 {[%emt 0:09:26]} 11. Nf1 {[%emt 0:07:30]} a5 {[%emt 0:02:50]} 12. a4 $146 {[%emt 0:04:35]} ({Predecessor:} 12. h3 Nd7 13. Bf4 b4 14. Ng5 Nce5 15. Red1 Ba6 16. c4 Rab8 17. Qh5 h6 18. h4 {1-0 Tust,D (2105)-Erenska Barlo,H (2280) POL-ch (Women) 1993 (9)}) 12... bxa4 {[%emt 0:00:58]} 13. Ne3 {[%emt 0:02:36]} Qb5 {[%emt 0:14:32]} 14. Bf1 {[%emt 0:14:39]} Nd7 {[%emt 0:11:58]} 15. Nd2 {[%emt 0:04:57]} Ba6 {[%emt 0:07:29]} 16. f4 {[%emt 0:07:58]} Rfe8 {[%emt 0:01:43]} 17. Qd1 {[%emt 0:04:05]} Qb8 {[%emt 0:05:58]} 18. Rxa4 {[%emt 0:06:33]} Nb6 {[%emt 0:00:24]} 19. Ra2 {[%emt 0:00:34]} d5 {[%emt 0:01:02]} 20. Qf3 {[%emt 0:06:50]} (20. exd5 $11 exd5 21. Bg2) 20... Bf8 {[%emt 0:03:16]} 21. Kf2 {[%emt 0:01:15]} Rd8 {[%emt 0:02:17]} 22. exd5 {[%emt 0:02:19]} exd5 {[%emt 0:00:38]} 23. Ng4 {[%emt 0:00:31]} Bb7 {[%emt 0:01:27]} 24. Bg2 {[%emt 0:01:52]} Ra7 {[%emt 0:00:10]} 25. Qd1 {[%emt 0:00:57]} Bc8 {[%emt 0:03:33]} 26. Ne5 {[%emt 0:00:56]} Nxe5 {[%emt 0:01:48]} 27. Rxe5 {[%emt 0:00:02]} Be6 {[%emt 0:00:44]} 28. Nf3 {[%emt 0:02:21]} Nd7 {[%emt 0:03:15]} 29. Re1 {[%emt 0:00:40]} h6 {[%emt 0:00:18]} 30. Ne5 {[%emt 0:01:50]} ({White should play} 30. Kg1 $11) 30... Qd6 {[%emt 0:02:49]} (30... Nxe5 $15 31. fxe5 Re8) 31. Qf3 {[%emt 0:01:20]} (31. Nf3 $11) 31... Nxe5 $15 {[%emt 0:02:18]} 32. Rxe5 {[%emt 0:00:03]} Be7 {[%emt 0:00:17]} 33. Re1 {[%emt 0:01:11]} Qb6 {[%emt 0:02:39]} 34. Re2 {[%emt 0:03:17]} Bc8 {[%emt 0:03:41]} 35. Re5 {[%emt 0:02:31] [#]} Bf6 $1 {[%emt 0:01:48]} 36. Re1 {[%emt 0:00:13]} (36. Rxd5 $2 {is the wrong capture.} Rxd5 37. Qxd5 Be6 $19) 36... Bb7 {[%emt 0:00:25]} 37. Qd1 {[%emt 0:00:23]} Bc6 {[%emt 0:00:15]} 38. Bd2 {[%emt 0:02:20]} a4 {[%emt 0:00:19]} 39. Qc2 {[%emt 0:01:18]} Rb8 {[%emt 0:01:14]} 40. Bf3 {[%emt 0:01:08]} Rab7 {[%emt 0:02:20]} 41. Re2 {[%emt 0:04:30]} (41. Bc1 $15 {feels stronger.}) 41... Qc7 $17 {[%emt 0:07:01]} 42. Kg2 {[%emt 0:02:07]} (42. Bc1 $17) 42... Rb3 $19 {[%emt 0:02:05]} 43. Be1 $2 {[%emt 0:01:38]} (43. Kg1) 43... Qb7 {[%emt 0:01:09]} (43... d4 $142 44. Be4 dxc3 45. Bxc3 Bxc3 46. bxc3 a3) 44. Kg1 $19 {[%emt 0:01:43]} Qd7 {[%emt 0:07:15]} ({Black should try} 44... c4 $19 {aiming for ...cxd3.} 45. dxc4 d4 (45... dxc4 46. Bxc6 Qxc6 47. Bf2 $17)) 45. Bf2 {[%emt 0:03:30]} Qd6 {[%emt 0:00:11]} 46. Qc1 {[%emt 0:03:23]} (46. h4 {keeps fighting.}) 46... Bxc3 $19 {[%emt 0:12:35]} 47. Rc2 $2 {[%emt 0:08:00]} (47. bxc3 $2 {loses.} Rb1 48. Ra1 Rxc1+ 49. Rxc1 Rb3 $19) (47. Kg2 Bb4 48. d4) 47... a3 {[%emt 0:01:53]} 48. Rxa3 {[%emt 0:01:12]} Bxb2 {[%emt 0:00:29]} 49. Rxb3 {[%emt 0:02:26]} Bxc1 {[%emt 0:00:28]} 50. Rxb8+ {[%emt 0:00:04]} Qxb8 {[%emt 0:00:08]} 51. Rxc1 {[%emt 0:00:03]} Qb5 {[%emt 0:01:21]} 52. Rxc5 {[%emt 0:00:23]} Qxd3 {[%emt 0:00:07]} 53. Kg2 {[%emt 0:01:18]} Bb5 {[%emt 0:00:38]} 54. g4 {[%emt 0:01:51]} Bc4 {[%emt 0:01:31]} 55. Rc8+ {[%emt 0:00:06]} Kh7 {[%emt 0:00:03]} 56. Rd8 {[%emt 0:00:13]} (56. Re8 $142) 56... Qc3 {[%emt 0:02:10]} 57. Rd7 {[%emt 0:00:46]} (57. Rxd5 $142 Bxd5 58. Bxd5) 57... Bf1+ $19 {[%emt 0:00:41]} 58. Kxf1 {[%emt 0:00:29]} Qxf3 {[%emt 0:00:04]} 59. Rxf7 {[%emt 0:00:54]} Qd1+ {[%emt 0:00:09]} (59... d4 $142 60. Re7 d3 (60... Qxg4 $2 61. Bxd4 Qd1+ 62. Re1 $19) (60... Qxf4 $2 61. g5 $19)) 60. Be1 $19 {[%emt 0:00:17]} d4 {[%emt 0:02:50]} 0-1

[Event "French Top 16-A 2024"]
[Site "Chartres"]
[Date "2024.06.01"]
[Round "1.14"]
[White "Degraeve, Remy"]
[Black "Wirig, Anthony"]
[Result "0-1"]
[ECO "C02"]
[WhiteElo "2433"]
[BlackElo "2453"]
[Annotator "RC"]
[PlyCount "106"]
[EventDate "2024.06.01"]
[EventType "team-tourn"]
[EventCountry "FRA"]
[SourceTitle "playchess.com"]
[Source "ChessBase"]
[SourceQuality "1"]
[TimeControl "40/5400+30:1800+30"]

1. e4 {[%emt 0:00:04]} e6 {[%emt 0:00:21]} 2. d4 {[%emt 0:00:04]} d5 {[%emt 0:00:03]} 3. e5 {[%emt 0:00:52]} a6 {[%emt 0:00:26]} 4. Nf3 {[%emt 0:01:08]} Bd7 {[%emt 0:01:12]} 5. h4 {[%emt 0:02:56]} Bb5 {[%emt 0:05:24]} 6. h5 {[%emt 0:01:30]} Bxf1 {[%emt 0:06:26]} 7. Kxf1 {[%emt 0:00:13]} c5 {[%emt 0:00:25]} 8. c3 {[%emt 0:00:08]} cxd4 {[%emt 0:11:13]} 9. cxd4 {[%emt 0:00:45]} Nc6 {[%emt 0:00:06]} 10. Nc3 {[%emt 0:02:25]} Qb6 {[%emt 0:05:57]} 11. Rh3 {[%emt 0:05:18]} h6 {[%emt 0:04:41]} 12. Rb1 {[%emt 0:08:37]} Rc8 {[%emt 0:03:16]} 13. Bd2 {[%emt 0:07:04]} Bb4 {[%emt 0:18:24]} 14. Rg3 {[%emt 0:04:34]} Kf8 {[%emt 0:12:10]} 15. Ne2 {[%emt 0:03:52]} Bxd2 {[%emt 0:05:10]} 16. Qxd2 {[%emt 0:00:04]} Nge7 {[%emt 0:00:08]} 17. Nh4 {[%emt 0:02:44]} Rg8 {[%emt 0:01:59]} 18. Kg1 {[%emt 0:02:35]} Ke8 {[%emt 0:01:04]} 19. f4 {[%emt 0:10:51]} Kd7 {[%emt 0:02:01]} 20. Rb3 {[%emt 0:06:33]} Qa7 {[%emt 0:00:43]} 21. f5 {[%emt 0:03:21]} Nxe5 {[%emt 0:03:52]} 22. Re1 {[%emt 0:02:36]} Nc4 {[%emt 0:01:26]} 23. Qd3 {[%emt 0:12:49]} e5 {[%emt 0:03:11]} 24. Kh1 {[%emt 0:00:04]} e4 {[%emt 0:00:50]} 25. Qh3 {[%emt 0:00:05]} f6 {[%emt 0:00:33]} 26. Ng6 {[%emt 0:03:19]} Rge8 {[%emt 0:10:51]} 27. Ngf4 {[%emt 0:00:23]} Nd6 {[%emt 0:01:12]} 28. Ne6 {[%emt 0:00:33]} Rg8 {[%emt 0:00:47]} 29. Nc3 {[%emt 0:02:11]} b5 {[%emt 0:00:30]} 30. a4 {[%emt 0:01:20]} Rb8 {[%emt 0:00:28]} 31. axb5 {[%emt 0:00:34]} Nxb5 {[%emt 0:00:30]} 32. Na4 {[%emt 0:01:18]} Nd6 {[%emt 0:00:37]} 33. Nac5+ {[%emt 0:00:56]} Ke8 {[%emt 0:00:12]} 34. Ra3 {[%emt 0:01:53]} a5 {[%emt 0:00:26]} 35. Qg3 {[%emt 0:06:00]} Ndxf5 {[%emt 0:00:21]} 36. Qf4 {[%emt 0:00:19]} Kf7 {[%emt 0:00:26]} 37. Rea1 {[%emt 0:04:30]} Rxb2 {[%emt 0:00:38]} 38. g4 {[%emt 0:01:47]} Nxd4 {[%emt 0:00:53]} 39. g5 {[%emt 0:02:55]} Nxe6 {[%emt 0:00:34]} 40. g6+ {[%emt 0:00:03]} Nxg6 {[%emt 0:00:27]} 41. hxg6+ {[%emt 0:30:11]} Ke7 {[%emt 0:30:16]} 42. Nxe6 {[%emt 0:00:00]} Kxe6 {[%emt 0:00:00]} 43. Qc1 {[%emt 0:00:00]} Qb8 {[%emt 0:00:00]} 44. Rh3 {[%emt 0:00:00]} Rc8 {[%emt 0:00:00]} 45. Qg1 {[%emt 0:00:00]} Rcc2 {[%emt 0:00:00]} 46. Rf1 {[%emt 0:00:00]} f5 {[%emt 0:00:00]} 47. Rh5 {[%emt 0:00:00]} a4 {[%emt 0:00:00]} 48. Rh4 {[%emt 0:00:00]} Rg2 {[%emt 0:00:00]} 49. Qxg2 {[%emt 0:00:00]} Rxg2 {[%emt 0:00:00]} 50. Kxg2 {[%emt 0:00:00]} d4 {[%emt 0:00:00]} 51. Rhh1 {[%emt 0:00:00]} f4 {[%emt 0:00:00]} 52. Re1 {[%emt 0:00:00]} f3+ {[%emt 0:00:00]} 53. Kh3 {[%emt 0:00:00]} Qf4 {[%emt 0:00:00]} 0-1

[Event "French Top 16-A 2024"]
[Site "Chartres"]
[Date "2024.06.01"]
[Round "1.14"]
[White "Hejazipour, Mitra"]
[Black "Peyrat, Olivier"]
[Result "1-0"]
[ECO "D45"]
[WhiteElo "2376"]
[BlackElo "2202"]
[Annotator "RC"]
[PlyCount "111"]
[EventDate "2024.06.01"]
[EventType "team-tourn"]
[EventCountry "FRA"]
[SourceTitle "playchess.com"]
[Source "ChessBase"]
[SourceQuality "1"]
[TimeControl "40/5400+30:1800+30"]

1. Nf3 {[%emt 0:00:15]} d5 {[%emt 0:00:44]} 2. e3 {[%emt 0:00:12]} Nf6 {[%emt 0:00:25]} 3. c4 {[%emt 0:00:20]} c6 {[%emt 0:00:46]} 4. Nc3 {[%emt 0:00:29]} e6 {[%emt 0:00:27]} 5. b3 {[%emt 0:00:48]} Nbd7 {[%emt 0:01:33]} 6. Bb2 {[%emt 0:00:27]} b6 {[%emt 0:00:39]} 7. Qc2 {[%emt 0:08:36]} Bb7 {[%emt 0:00:38]} 8. d4 {[%emt 0:00:56]} Bd6 {[%emt 0:05:44]} 9. Be2 {[%emt 0:04:46]} Qe7 {[%emt 0:04:58]} 10. O-O {[%emt 0:01:08]} O-O {[%emt 0:00:27]} 11. e4 {[%emt 0:20:35]} dxe4 {[%emt 0:01:17]} 12. Nxe4 {[%emt 0:06:38]} Ba3 {[%emt 0:03:40]} 13. Bc3 {[%emt 0:06:15]} c5 {[%emt 0:03:41]} 14. Nxf6+ {[%emt 0:02:24]} Nxf6 {[%emt 0:00:37]} 15. dxc5 {[%emt 0:00:47]} Bxc5 {[%emt 0:08:23]} 16. Ng5 {[%emt 0:00:41]} g6 {[%emt 0:28:21]} 17. Rad1 {[%emt 0:20:24]} Rfd8 {[%emt 0:02:56]} 18. Qb2 {[%emt 0:05:22]} Ne8 {[%emt 0:01:19]} 19. Bf3 {[%emt 0:00:50]} Bxf3 {[%emt 0:05:59]} 20. Nxf3 {[%emt 0:00:02]} Rxd1 {[%emt 0:00:31]} 21. Rxd1 {[%emt 0:00:02]} Rd8 {[%emt 0:00:26]} 22. Rxd8 {[%emt 0:00:50]} Qxd8 {[%emt 0:00:02]} 23. g3 {[%emt 0:07:34]} f6 {[%emt 0:04:20]} 24. Qe2 {[%emt 0:01:41]} Kf7 {[%emt 0:01:06]} 25. b4 {[%emt 0:01:39]} Be7 {[%emt 0:05:57]} 26. Nd4 {[%emt 0:01:05]} Qd7 {[%emt 0:00:21]} 27. Nc2 {[%emt 0:03:21]} Qc6 {[%emt 0:03:49]} 28. Qd3 {[%emt 0:00:31]} Nd6 {[%emt 0:00:58]} 29. Ne3 {[%emt 0:00:10]} Qf3 {[%emt 0:00:53]} 30. Qc2 {[%emt 0:03:59]} Ne4 {[%emt 0:01:33]} 31. Be1 {[%emt 0:00:01]} h5 {[%emt 0:05:01]} 32. Ng2 {[%emt 0:00:27]} g5 {[%emt 0:00:25]} 33. h4 {[%emt 0:00:08]} f5 {[%emt 0:00:45]} 34. hxg5 {[%emt 0:00:18]} Bxg5 {[%emt 0:00:03]} 35. c5 {[%emt 0:00:24]} bxc5 {[%emt 0:02:41]} 36. bxc5 {[%emt 0:00:01]} Bd8 {[%emt 0:04:01]} 37. c6 {[%emt 0:02:15]} Bc7 {[%emt 0:00:06]} 38. Qa4 {[%emt 0:00:07]} Nd6 {[%emt 0:00:24]} 39. Qxa7 {[%emt 0:00:45]} Qxc6 {[%emt 0:00:02]} 40. Qe3 {[%emt 0:01:30]} Ne4 {[%emt 0:00:35]} 41. Qh6 {[%emt 0:03:44]} Nf6 {[%emt 0:05:43]} 42. Nh4 {[%emt 0:01:11]} Bd8 {[%emt 0:06:47]} 43. Bb4 {[%emt 0:03:37]} Ke8 {[%emt 0:02:22]} 44. Ng6 {[%emt 0:01:44]} Qc7 {[%emt 0:09:49]} 45. Qf8+ {[%emt 0:02:47]} Kd7 {[%emt 0:00:02]} 46. Qf7+ {[%emt 0:00:50]} Kc6 {[%emt 0:00:21]} 47. Qxe6+ {[%emt 0:00:23]} Kb5 {[%emt 0:00:09]} 48. Be7 {[%emt 0:02:05]} Bxe7 {[%emt 0:02:36]} 49. Nxe7 {[%emt 0:00:11]} Qc3 {[%emt 0:00:42]} 50. Qxf5+ {[%emt 0:00:43]} Ka4 {[%emt 0:02:03]} 51. Nd5 {[%emt 0:01:43]} Qe1+ {[%emt 0:03:03]} 52. Kg2 {[%emt 0:00:07]} Ng4 {[%emt 0:00:50]} 53. Qf3 {[%emt 0:06:36]} Ne5 {[%emt 0:02:25]} 54. Qb3+ {[%emt 0:00:52]} Ka5 {[%emt 0:00:04]} 55. Qb6+ {[%emt 0:00:44]} Ka4 {[%emt 0:00:07]} 56. Qa6+ {[%emt 0:01:07]} 1-0

[Event "French Top 16-A 2024"]
[Site "Chartres"]
[Date "2024.06.01"]
[Round "1.15"]
[White "Barbot, Pierre"]
[Black "Flom, Gabriel"]
[Result "1-0"]
[ECO "E68"]
[WhiteElo "2425"]
[BlackElo "2431"]
[Annotator "RC"]
[PlyCount "113"]
[EventDate "2024.06.01"]
[EventType "team-tourn"]
[EventCountry "FRA"]
[SourceTitle "playchess.com"]
[Source "ChessBase"]
[SourceQuality "1"]
[TimeControl "40/5400+30:1800+30"]

1. d4 {[%emt 0:00:19]} Nf6 {[%emt 0:00:49]} 2. c4 {[%emt 0:00:05]} g6 {[%emt 0:00:08]} 3. g3 {[%emt 0:00:13]} Bg7 {[%emt 0:00:59]} 4. Bg2 {[%emt 0:00:06]} O-O {[%emt 0:00:56]} 5. Nc3 {[%emt 0:00:12]} d6 {[%emt 0:00:05]} 6. Nf3 {[%emt 0:00:06]} Nbd7 {[%emt 0:02:18]} 7. O-O {[%emt 0:00:33]} e5 {[%emt 0:00:17]} 8. e4 {[%emt 0:00:21]} exd4 {[%emt 0:02:18]} 9. Nxd4 {[%emt 0:00:06]} Re8 {[%emt 0:00:14]} 10. h3 {[%emt 0:02:33]} Nc5 {[%emt 0:01:57]} 11. Re1 {[%emt 0:02:08]} h6 {[%emt 0:01:00]} 12. f3 {[%emt 0:22:01]} Nfd7 {[%emt 0:14:27]} 13. Be3 {[%emt 0:08:51]} Ne5 {[%emt 0:04:46]} 14. b3 {[%emt 0:14:32]} Ned3 {[%emt 0:01:52]} 15. Rf1 {[%emt 0:01:38]} f5 {[%emt 0:00:24]} 16. Qd2 {[%emt 0:04:15]} fxe4 {[%emt 0:00:31]} 17. Nxe4 {[%emt 0:01:59]} Nxe4 {[%emt 0:01:59]} 18. fxe4 {[%emt 0:00:30]} Nc5 {[%emt 0:00:40]} 19. Bxh6 {[%emt 0:13:11]} Nxe4 {[%emt 0:00:43]} 20. Bxe4 {[%emt 0:00:05]} Rxe4 {[%emt 0:00:06]} 21. Bxg7 {[%emt 0:02:40]} Kxg7 {[%emt 0:00:04]} 22. Nf3 {[%emt 0:01:34]} Bxh3 {[%emt 0:13:59]} 23. Ng5 {[%emt 0:02:08]} Bxf1 {[%emt 0:02:40]} 24. Nxe4 {[%emt 0:00:04]} Bh3 {[%emt 0:01:07]} 25. Re1 {[%emt 0:04:45]} Bf5 {[%emt 0:23:07]} 26. Qd4+ {[%emt 0:02:08]} Kf7 {[%emt 0:05:10]} 27. Rf1 {[%emt 0:03:36]} Kg8 {[%emt 0:10:11]} 28. Qd5+ {[%emt 0:05:18]} Kg7 {[%emt 0:00:56]} 29. g4 {[%emt 0:04:11]} Bxe4 {[%emt 0:00:05]} 30. Rf7+ {[%emt 0:00:04]} Kg8 {[%emt 0:00:09]} 31. Qe6 {[%emt 0:00:03]} Qh4 {[%emt 0:00:54]} 32. Rf2+ {[%emt 0:00:49]} Kg7 {[%emt 0:00:36]} 33. Qf7+ {[%emt 0:00:10]} Kh6 {[%emt 0:03:57]} 34. Rh2 {[%emt 0:00:03]} Qxh2+ {[%emt 0:00:38]} 35. Kxh2 {[%emt 0:00:01]} Bc6 {[%emt 0:00:06]} 36. Qxc7 {[%emt 0:03:52]} Kg5 {[%emt 0:00:34]} 37. Kg3 {[%emt 0:00:47]} Re8 {[%emt 0:00:02]} 38. Qa5+ {[%emt 0:00:07]} Kf6 {[%emt 0:00:21]} 39. Qxa7 {[%emt 0:00:08]} Re4 {[%emt 0:00:12]} 40. Qf2+ {[%emt 0:00:36]} Ke7 {[%emt 0:01:13]} 41. Qb2 {[%emt 0:32:52]} Re3+ {[%emt 0:31:22]} 42. Kf2 {[%emt 0:00:00]} Re5 {[%emt 0:00:00]} 43. b4 {[%emt 0:00:00]} Ke6 {[%emt 0:00:00]} 44. b5 {[%emt 0:00:00]} Be4 {[%emt 0:00:00]} 45. Qd4 {[%emt 0:00:00]} Bc2 {[%emt 0:00:00]} 46. Qb6 {[%emt 0:00:00]} Rc5 {[%emt 0:00:00]} 47. Qxb7 {[%emt 0:00:00]} Rxc4 {[%emt 0:00:00]} 48. b6 {[%emt 0:00:00]} Be4 {[%emt 0:00:00]} 49. Qb8 {[%emt 0:00:00]} Ke5 {[%emt 0:00:00]} 50. b7 {[%emt 0:00:00]} Rc2+ {[%emt 0:00:00]} 51. Ke1 {[%emt 0:00:00]} Rc1+ {[%emt 0:00:00]} 52. Kd2 {[%emt 0:00:00]} Rc2+ {[%emt 0:00:00]} 53. Kd1 {[%emt 0:00:00]} Rxa2 {[%emt 0:00:00]} 54. Qh8+ {[%emt 0:00:00]} Kf4 {[%emt 0:00:00]} 55. b8=Q {[%emt 0:00:00]} Kxg4 {[%emt 0:00:00]} 56. Qxd6 {[%emt 0:00:00]} g5 {[%emt 0:00:00]} 57. Qe6+ {[%emt 0:00:00]} 1-0